fUSD/lending_fUSD_20260128
["ID","MTS","AMOUNT","RATE_DAILY","PERIOD"]
[403841013,1769586656738,-9058.37508753,0.000169,2]
[403841014,1769586656749,-9181.62491247,0.0001752,2]
[403841015,1769586656763,-4131.7238808,0.0001752,2]
[403841016,1769586656778,-1786.77833917,0.0001752,2]
[403841017,1769586656787,-308.0,0.000212,2]
[403841018,1769586656796,-151.0,0.00022521,2]
[403841019,1769586656805,-1642.40371271,0.000248,3]
[403841020,1769586656816,-898.37969454,0.000248,3]
[403841021,1769586656827,-481.29421251,0.000248,3]
[403841022,1769586656942,-2730.0,0.000248,3]
[403841023,1769586656952,-457.575,0.000248,3]
[403841024,1769586659018,-1168.0566288,0.000248,3]
[403841025,1769586659034,-805.1606439,0.000248,3]
[403841026,1769586659255,500.0,0.00014566,2]
[403841027,1769586659313,285.57758706,0.00014566,2]
[403841028,1769586659408,500.0,0.00014566,2]
[403841029,1769586659490,500.0,0.00014566,2]
[403841030,1769586659561,500.0,0.00014566,2]
[403841031,1769586659630,500.0,0.00014566,2]
[403841032,1769586659709,500.0,0.00014566,2]
[403841033,1769586659788,500.0,0.00014566,2]
[403841034,1769586659875,500.0,0.00014566,2]
[403841035,1769586659933,500.0,0.00014566,2]
[403841036,1769586659989,500.0,0.00014566,2]
[403841037,1769586660036,500.0,0.00014566,2]
[403841038,1769586660087,155.37941822,0.00014566,2]
[403841039,1769586660146,500.0,0.00014566,2]
[403841040,1769586660220,500.0,0.00014566,2]
[403841041,1769586660277,500.0,0.00014566,2]
[403841042,1769586660336,500.0,0.00014566,2]
[403841043,1769586660402,500.0,0.00014566,2]
[403841044,1769586660453,207.8994773,0.00014566,2]
[403841045,1769586660515,500.0,0.00014566,2]
[403841046,1769586660566,500.0,0.00014566,2]
[403841047,1769586660627,500.0,0.00014566,2]
[403841048,1769586660695,500.0,0.00014566,2]
[403841049,1769586661580,136.73110448,0.00014565,2]
[403841050,1769586661608,163.26889552,0.00014565,2]
[403841051,1769586676292,150.0,0.00014492,2]
[403841052,1769586676457,150.0,0.00014547,2]
[403841053,1769586676607,200.0,0.00014602,2]
[403841054,1769586709024,500.0,0.00014566,2]
[403841055,1769586714334,500.0,0.00014566,2]
[403841056,1769586720761,500.0,0.00014566,2]
[403841057,1769586723562,500.0,0.00014566,2]
[403841058,1769586724110,500.0,0.00014566,2]
[403841059,1769586725899,500.0,0.00014566,2]
[403841060,1769586726161,472.98397701,0.00014566,2]
[403841061,1769586727230,500.0,0.00014566,2]
[403841062,1769586727533,500.0,0.00014566,2]
[403841063,1769586727587,500.0,0.00014566,2]
[403841064,1769586727642,500.0,0.00014566,2]
[403841065,1769586727699,500.0,0.00014566,2]
[403841066,1769586727755,500.0,0.00014566,2]
[403841067,1769586727802,500.0,0.00014566,2]
[403841068,1769586727854,500.0,0.00014566,2]
[403841069,1769586727912,500.0,0.00014566,2]
[403841070,1769586727963,500.0,0.00014566,2]
[403841071,1769586728009,500.0,0.00014566,2]
[403841072,1769586728071,500.0,0.00014566,2]
[403841073,1769586728170,500.0,0.00014566,2]
[403841074,1769586728218,27.02602299,0.00014566,2]
[403841075,1769586728252,472.97397701,0.00014566,2]
[403841076,1769586728308,500.0,0.00014566,2]
[403841077,1769586728362,500.0,0.00014566,2]
[403841078,1769586728415,500.0,0.00014566,2]
[403841079,1769586728474,500.0,0.00014566,2]
[403841080,1769586728530,500.0,0.00014566,2]
[403841081,1769586728599,500.0,0.00014566,2]
[403841082,1769586728658,500.0,0.00014566,2]
[403841083,1769586728727,500.0,0.00014566,2]
[403841084,1769586728800,500.0,0.00014566,2]
[403841085,1769586728853,500.0,0.00014566,2]
[403841086,1769586728905,497.72434129,0.00014566,2]
[403841087,1769586728965,500.0,0.00014566,2]
[403841088,1769586729018,500.0,0.00014566,2]
[403841089,1769586729071,500.0,0.00014566,2]
[403841090,1769586729353,500.0,0.00014566,2]
[403841091,1769586729410,500.0,0.00014566,2]
[403841092,1769586729569,500.0,0.00014566,2]
[403841093,1769586729625,500.0,0.00014566,2]
[403841094,1769586740048,500.0,0.00014467,2]
[403841095,1769586746217,10000.01,0.00014467,2]
[403841096,1769586746244,10000.01,0.00014467,2]
[403841097,1769586746275,10000.01,0.00014467,2]
[403841098,1769586746317,3257.4775,0.00014467,2]
[403841099,1769586763114,6742.5325,0.00014467,2]
[403841100,1769586763143,10000.01,0.00014467,2]
[403841101,1769586763173,10000.01,0.00014467,2]
[403841102,1769586763201,10000.01,0.00014467,2]
[403841103,1769586763231,10000.01,0.00014467,2]
[403841104,1769586763259,10000.01,0.00014467,2]
[403841105,1769586763289,10000.01,0.00014467,2]
[403841106,1769586763317,10000.01,0.00014467,2]
[403841107,1769586763344,10000.01,0.00014467,2]
[403841108,1769586763376,10000.01,0.00014467,2]
[403841109,1769586781245,300.0,0.00014466,2]
[403841110,1769586801759,1200.0,0.00014466,2]
[403841111,1769586823638,3918.48933087,0.00014367,2]
[403841112,1769586841249,300.0,0.00014466,2]
[403841113,1769586841895,150.0,0.00014466,2]
[403841114,1769586842362,300.0,0.00014466,2]
[403841115,1769586901204,1200.0,0.00014466,2]
[403841116,1769586930357,172.25101662,0.00014367,2]
[403841117,1769586935596,172.25101662,0.00014417,2]
[403841118,1769586940348,172.25101662,0.00014466,2]
[403841119,1769586950437,2114.76761927,0.00014367,2]
[403841120,1769586950465,1367.79008156,0.00014367,2]
[403841131,1769587022922,150.0,0.00014466,2]
[403841132,1769587102014,536.0,0.00014466,2]
[403841133,1769587157096,7946.21991844,0.00013102,2]
[403841134,1769587157121,3364.44008156,0.00013102,2]
[403841135,1769587201317,1200.0,0.00014466,2]
[403841136,1769587202068,150.0,0.00014466,2]
[403841137,1769587203524,270.0,0.00014467,2]
[403841138,1769587210059,439.10722506,0.00014466,2]
[403841139,1769587215224,151.0,0.00014464,2]
[403841140,1769587215593,151.0,0.00014464,2]
[403841141,1769587225287,500.0,0.00014466,2]
[403841142,1769587225334,500.0,0.00014466,2]
[403841143,1769587225399,500.0,0.00014466,2]
[403841144,1769587225438,255.43586911,0.00014457,2]
[403841145,1769587225481,500.0,0.00014466,2]
[403841146,1769587225571,500.0,0.00014466,2]
[403841147,1769587225616,500.0,0.00014466,2]
[403841148,1769587225666,500.0,0.00014466,2]
[403841149,1769587225710,500.0,0.00014466,2]
[403841150,1769587225775,19.02682427,0.00014466,2]
[403841151,1769587225806,480.97317573,0.00014466,2]
[403841152,1769587225856,500.0,0.00014466,2]
[403841153,1769587225926,500.0,0.00014466,2]
[403841154,1769587225968,500.0,0.00014466,2]
[403841155,1769587226011,500.0,0.00014466,2]
[403841156,1769587226085,500.0,0.00014466,2]
[403841157,1769587226541,500.0,0.00014466,2]
[403841158,1769587226585,500.0,0.00014466,2]
[403841159,1769587226626,500.0,0.00014466,2]
[403841160,1769587226671,500.0,0.00014466,2]
[403841161,1769587226718,500.0,0.00014466,2]
[403841162,1769587226784,500.0,0.00014466,2]
[403841163,1769587226827,500.0,0.00014466,2]
[403841164,1769587226885,500.0,0.00014466,2]
[403841165,1769587226935,500.0,0.00014466,2]
[403841166,1769587226980,500.0,0.00014466,2]
[403841167,1769587227024,500.0,0.00014466,2]
[403841168,1769587227071,556.0361509,0.00014466,2]
[403841169,1769587227522,500.0,0.00014466,2]
[403841170,1769587230117,463.00067337,0.00014466,2]
[403841171,1769587230149,36.99932663,0.00014466,2]
[403841172,1769587242633,500.0,0.00014466,2]
[403841173,1769587242702,500.0,0.00014466,2]
[403841174,1769587242771,500.0,0.00014466,2]
[403841175,1769587242839,500.0,0.00014466,2]
[403841176,1769587242909,500.0,0.00014466,2]
[403841177,1769587242954,500.0,0.00014466,2]
[403841178,1769587243096,500.0,0.00014466,2]
[403841179,1769587243143,500.0,0.00014466,2]
[403841180,1769587243205,500.0,0.00014466,2]
[403841181,1769587243249,500.0,0.00014466,2]
[403841182,1769587243317,500.0,0.00014466,2]
[403841183,1769587243842,500.0,0.00014466,2]
[403841184,1769587243887,500.0,0.00014466,2]
[403841185,1769587243956,500.0,0.00014466,2]
[403841186,1769587244021,500.0,0.00014466,2]
[403841187,1769587256125,2463.01067337,0.00014367,2]
[403841188,1769587256151,36.98932663,0.00014367,2]
[403841189,1769587288510,350.68793069,0.00014466,2]
[403841190,1769587292406,263.298,0.00014178,2]
[403841191,1769587293116,296.33634591,0.00014466,2]
[403841192,1769587295372,3218.24,0.00014178,2]
[403841193,1769587297979,1651.92,0.00014,2]
[403841194,1769587327820,189.43,0.000144,2]
[403841195,1769587328627,200.0,0.00014467,2]
[403841196,1769587329016,302.0,0.00014467,2]
[403841197,1769587329056,151.0,0.00014467,2]
[403841198,1769587333328,500.0,0.00014467,2]
[403841199,1769587333923,500.0,0.00014467,2]
[403841200,1769587334528,500.0,0.00014467,2]
[403841201,1769587335130,500.0,0.00014467,2]
[403841202,1769587335177,1340.10839677,0.00014367,2]
[403841203,1769587335206,2237.09470447,0.00014367,2]
[403841204,1769587335746,500.0,0.00014467,2]
[403841205,1769587336334,500.0,0.00014467,2]
[403841206,1769587336934,500.0,0.00014467,2]
[403841207,1769587337457,200.0,0.00014467,2]
[403841208,1769587337543,500.0,0.00014467,2]
[403841209,1769587338791,3410.17460199,0.00014367,2]
[403841210,1769587338947,500.0,0.00014467,2]
[403841211,1769587339107,500.0,0.00014467,2]
[403841212,1769587339256,500.0,0.00014467,2]
[403841213,1769587339369,500.0,0.00014467,2]
[403841214,1769587339450,152.74069354,0.00014467,2]
[403841215,1769587339480,347.25930646,0.00014467,2]
[403841216,1769587339827,500.0,0.00014467,2]
[403841217,1769587340447,500.0,0.00014467,2]
[403841218,1769587340662,8652.75069354,0.00014466,2]
[403841219,1769587340690,10000.01,0.00014466,2]
[403841220,1769587340720,8956.41366654,0.00014466,2]
[403841221,1769587341588,500.0,0.00014467,2]
[403841222,1769587342212,500.0,0.00014467,2]
[403841223,1769587342585,43.59633346,0.00014467,2]
[403841224,1769587342616,456.40366654,0.00014467,2]
[403841225,1769587342827,500.0,0.00014467,2]
[403841226,1769587343203,210.28593512,0.00014467,2]
[403841227,1769587344774,500.0,0.00014467,2]
[403841228,1769587344955,500.0,0.00014467,2]
[403841229,1769587349912,-500.0,0.00014467,2]
[403841230,1769587349949,-500.0,0.00014467,2]
[403841231,1769587349984,-151.0,0.00014467,2]
[403841232,1769587350022,-151.0,0.00014467,2]
[403841233,1769587350052,-200.0,0.00014467,2]
[403841234,1769587350083,-151.0,0.00014467,2]
[403841235,1769587350347,-151.0,0.00014467,2]
[403841236,1769587351100,-151.0,0.00014467,2]
[403841237,1769587352520,-151.0,0.00014467,2]
[403841238,1769587352552,-151.0,0.00014467,2]
[403841239,1769587352584,-151.0,0.00014467,2]
[403841240,1769587353278,-151.0,0.00014467,2]
[403841241,1769587353702,-151.0,0.00014467,2]
[403841242,1769587355605,-151.0,0.00014467,2]
[403841243,1769587356001,-8741.94791088,0.00014467,2]
[403841244,1769587356021,-10000.01,0.00014467,2]
[403841245,1769587356087,-10000.01,0.00014467,2]
[403841246,1769587356208,-10000.01,0.00014467,2]
[403841247,1769587356314,-10000.01,0.00014467,2]
[403841248,1769587356446,-10000.01,0.00014467,2]
[403841249,1769587356567,-10000.01,0.00014467,2]
[403841250,1769587356776,-10000.01,0.00014467,2]
[403841251,1769587356907,-10000.01,0.00014467,2]
[403841252,1769587382485,150.0,0.00014466,2]
[403841253,1769587382817,300.0,0.00014466,2]
[403841254,1769587384739,234.22420722,0.00014467,2]
[403841255,1769587400550,9315.78579278,0.00014367,2]
[403841256,1769587400574,9013.69710722,0.00014367,2]
[403841257,1769587401830,487.0,0.00014466,2]
[403841258,1769587462481,165.39788355,0.00014367,2]
[403841261,1769587502274,300.0,0.00014466,2]
[403841262,1769587506063,33.91500923,0.00014466,2]
[403841263,1769587506091,1166.08499077,0.00014466,2]
[403841264,1769587556303,151.0,0.00014467,2]
[403841265,1769587556346,153.94607315,0.00014467,2]
[403841266,1769587557160,285.79091132,0.00014467,2]
[403841267,1769587561666,300.0,0.00014466,2]
[403841268,1769587561821,150.0,0.00014466,2]
[403841269,1769587561863,300.0,0.00014466,2]
[403841270,1769587622164,165.39788355,0.00014367,2]
[403841271,1769587627438,200.0,0.00014467,2]
[403841272,1769587627809,151.0,0.00014467,2]
[403841273,1769587628935,151.0,0.00014467,2]
[403841274,1769587629620,151.0,0.00014467,2]
[403841275,1769587629845,500.0,0.00014467,2]
[403841276,1769587630226,151.0,0.00014467,2]
[403841277,1769587630467,247.52642896,0.00014467,2]
[403841278,1769587630673,500.0,0.00014467,2]
[403841279,1769587630829,151.0,0.00014467,2]
[403841280,1769587631287,500.0,0.00014467,2]
[403841281,1769587631432,151.0,0.00014467,2]
[403841282,1769587632164,1000.0,0.00014466,2]
[403841283,1769587632609,500.0,0.00014467,2]
[403841284,1769587632663,151.0,0.00014467,2]
[403841285,1769587632757,537.55489787,0.00014467,2]
[403841286,1769587632810,151.0,0.00014467,2]
[403841287,1769587633288,151.0,0.00014467,2]
[403841288,1769587633882,151.0,0.00014467,2]
[403841289,1769587634329,-250.0,0.00014467,2]
[403841290,1769587634481,151.0,0.00014467,2]
[403841291,1769587634910,-1231.70881438,0.00014467,2]
[403841292,1769587634977,-10000.01,0.00014467,2]
[403841293,1769587635010,-10000.01,0.00014467,2]
[403841294,1769587635089,151.0,0.00014467,2]
[403841295,1769587635131,-9849.01,0.00014467,2]
[403841296,1769587635276,-10000.01,0.00014467,2]
[403841297,1769587635390,-10000.01,0.00014467,2]
[403841298,1769587635512,-10000.01,0.00014467,2]
[403841299,1769587635626,-10000.01,0.00014467,2]
[403841300,1769587635678,151.0,0.00014467,2]
[403841301,1769587635848,400.0,0.000138,5]
[403841302,1769587636282,151.0,0.00014467,2]
[403841303,1769587637930,900.0,0.000139,5]
[403841304,1769587640192,-151.0,0.00014467,2]
[403841305,1769587640225,-151.0,0.00014467,2]
[403841306,1769587640258,-151.0,0.00014467,2]
[403841307,1769587640289,-151.0,0.00014467,2]
[403841308,1769587640321,-151.0,0.00014467,2]
[403841309,1769587640353,-151.0,0.00014467,2]
[403841310,1769587640524,-7886.01,0.00014467,2]
[403841311,1769587640548,-10000.01,0.00014467,2]
[403841312,1769587655345,-223.46614869,0.00014367,2]
[403841313,1769587665601,-444.2987758,0.00014467,2]
[403841314,1769587665763,200.0,0.00014467,2]
[403841315,1769587668943,200.0,0.00014467,2]
[403841316,1769587669582,151.0,0.00014467,2]
[403841317,1769587670186,151.0,0.00014467,2]
[403841318,1769587670788,151.0,0.00014467,2]
[403841319,1769587671389,151.0,0.00014467,2]
[403841320,1769587672031,151.0,0.00014467,2]
[403841321,1769587672654,151.0,0.00014467,2]
[403841322,1769587673282,151.0,0.00014467,2]
[403841323,1769587673885,151.0,0.00014467,2]
[403841324,1769587674256,3606.0951,0.00014367,2]
[403841325,1769587674480,151.0,0.00014467,2]
[403841326,1769587675087,151.0,0.00014467,2]
[403841327,1769587676588,151.0,0.00014467,2]
[403841328,1769587676689,169.59603036,0.00014367,2]
[403841329,1769587680486,3274.72131804,0.00014367,2]
[403841330,1769587680513,10000.01,0.00014367,2]
[403841331,1769587680539,10000.01,0.00014367,2]
[403841332,1769587680568,10000.01,0.00014367,2]
[403841333,1769587680594,10000.01,0.00014367,2]
[403841334,1769587680949,-3033.43718196,0.00014367,2]
[403841335,1769587687853,-2500.0,0.00014367,2]
[403841336,1769587688061,-9821.74318768,0.00014467,2]
[403841337,1769587688095,-10000.01,0.00014467,2]
[403841338,1769587688398,249.13238104,0.00021,30]
[403841339,1769587724003,5901.30840244,0.00014367,2]
[403841340,1769587763824,237.1434,0.00014367,2]
[403841341,1769587770245,165.39788355,0.00014367,2]
[403841342,1769587774147,-5303.887204,0.00014467,2]
[403841343,1769587801497,1200.0,0.00014466,2]
[403841344,1769587805147,270.0,0.00014467,2]
[403841345,1769587805294,2226.16031401,0.00014367,2]
[403841346,1769587805329,10000.01,0.00014367,2]
[403841347,1769587805363,10000.01,0.00014367,2]
[403841348,1769587805397,10000.01,0.00014367,2]
[403841349,1769587805432,10000.01,0.00014367,2]
[403841350,1769587805466,10000.01,0.00014367,2]
[403841351,1769587805500,10000.01,0.00014367,2]
[403841352,1769587805533,10000.01,0.00014367,2]
[403841353,1769587805567,10000.01,0.00014367,2]
[403841354,1769587805601,10000.01,0.00014367,2]
[403841357,1769587831723,-410.41482702,0.00014367,2]
[403841358,1769587831735,-911.77284541,0.00014367,2]
[403841359,1769587831775,-54172.54552605,0.00014367,2]
[403841360,1769587831788,-18830.12335296,0.00014367,2]
[403841361,1769587831801,-999.0,0.00014367,2]
[403841362,1769587831836,-1837.45735707,0.00014367,2]
[403841363,1769587831848,-310.31525792,0.00014367,2]
[403841364,1769587831891,-280.0,0.00014367,2]
[403841365,1769587831903,-1280022.12051956,0.00014367,2]
[403841366,1769587831914,-151.0,0.00014464,2]
[403841367,1769587831924,-1726.552638,0.00014467,2]
[403841368,1769587831935,-1000.0,0.00014467,2]
[403841369,1769587831945,-455.4139,0.00014467,2]
[403841370,1769587831954,-281.27998493,0.00014467,2]
[403841372,1769587831964,-250.0,0.0001451,2]
[403841374,1769587831973,-500.0,0.00014566,2]
[403841375,1769587831983,-500.0,0.00014566,2]
[403841376,1769587831994,-500.0,0.00014566,2]
[403841378,1769587832003,-500.0,0.00014566,2]
[403841379,1769587832012,-500.0,0.00014566,2]
[403841382,1769587832022,-500.0,0.00014566,2]
[403841383,1769587832031,-500.0,0.00014566,2]
[403841385,1769587832040,-509.33160404,0.00014566,2]
[403841388,1769587832050,-500.0,0.00014566,2]
[403841390,1769587832059,-500.0,0.00014566,2]
[403841392,1769587832068,-500.0,0.00014566,2]
[403841394,1769587832081,-196.06949723,0.00014566,2]
[403841396,1769587832091,-500.0,0.00014566,2]
[403841398,1769587832099,-500.0,0.00014566,2]
[403841400,1769587832108,-510.50875951,0.00014566,2]
[403841402,1769587832119,-500.0,0.00014566,2]
[403841404,1769587832128,-586.26,0.00014566,2]
[403841406,1769587832138,-500.0,0.00014566,2]
[403841408,1769587832149,-150.00047187,0.0001457,2]
[403841410,1769587832158,-343.34729903,0.00014658,2]
[403841412,1769587832167,-500.0,0.00014766,2]
[403841414,1769587832175,-500.0,0.00014766,2]
[403841416,1769587832185,-500.0,0.00014766,2]
[403841418,1769587832194,-500.0,0.00014766,2]
[403841420,1769587832203,-500.0,0.00014766,2]
[403841421,1769587832211,-586.26,0.0001484,2]
[403841422,1769587832220,-166.66,0.0001499,2]
[403841423,1769587832230,-48054.39435125,0.00015052,2]
[403841424,1769587832241,-13954.33862465,0.00015052,2]
[403841425,1769587832250,-2142.35,0.00015088,2]
[403841426,1769587832259,-586.26,0.00015114,2]
[403841427,1769587832269,-1852.42,0.0001513,2]
[403841428,1769587832278,-1500.0,0.00015142,2]
[403841429,1769587832287,-1278.35,0.00015188,2]
[403841430,1769587832296,-3189.13646846,0.00015188,2]
[403841431,1769587832307,-23018.73065755,0.00015188,2]
[403841432,1769587832325,-1078.91753198,0.00015188,2]
[403841433,1769587832335,-2039.30209576,0.00015188,2]
[403841483,1769587837819,-1110.68474208,0.00014367,2]
[403841486,1769587837872,-18889.33525792,0.00014367,2]
[403841487,1769587837883,-673.90324625,0.00015188,2]
[403841488,1769587837892,-310.18,0.00015188,2]
[403841489,1769587837902,-166.66,0.00015306,2]
[403841490,1769587837912,-586.26,0.00015388,2]
[403841491,1769587837922,-166.66,0.00015446,2]
[403841492,1769587837931,-430.0,0.0001545,2]
[403841501,1769587838438,-221.21579402,0.0001546,2]
[403841502,1769587838448,-950.0,0.00015475,2]
[403841503,1769587838458,-151.0,0.00015501,2]
[403841504,1769587838467,-151.0,0.00015501,2]
[403841505,1769587838478,-166.66,0.00015621,2]
[403841506,1769587838487,-586.26,0.00015662,2]
[403841507,1769587838497,-247.21,0.0001567,2]
[403841508,1769587838507,-3240.0,0.00015794,2]
[403841509,1769587838517,-500.0,0.00015796,2]
[403841510,1769587838526,-150.0,0.00015833,2]
[403841511,1769587838535,-1680.0,0.00015913,2]
[403841512,1769587838544,-500.0,0.00015914,2]
[403841513,1769587838553,-250.0,0.00015914,2]
[403841514,1769587838563,-250.0,0.00015914,2]
[403841515,1769587838572,-600.0,0.00015914,2]
[403841516,1769587838582,-166.66,0.00015937,2]
[403841517,1769587838591,-166.66,0.00015956,2]
[403841518,1769587838601,-150.00047187,0.00015967,2]
[403841519,1769587838610,-862.7813994,0.00015974,2]
[403841520,1769587838624,-400.42737409,0.00015999,2]
[403841521,1769587838634,-500.0,0.00015999,2]
[403841522,1769587838644,-500.0,0.00015999,2]
[403841523,1769587838654,-3244.65,0.00016038,2]
[403841524,1769587838664,-2684.80945882,0.00016063,2]
[403841527,1769587840184,-2500.0,0.00014367,2]
[403841528,1769587840194,-150.00289551,0.00015187,2]
[403841529,1769587840205,-559.84054118,0.00016063,2]
[403841530,1769587840216,-3244.65,0.00016089,2]
[403841531,1769587840225,-595.78070877,0.00016108,2]
[403841532,1769587840234,-3244.65,0.00016114,2]
[403841533,1769587840243,-3244.65,0.00016139,2]
[403841534,1769587840252,-3244.65,0.00016165,2]
[403841535,1769587840263,-601.20585949,0.00016188,2]
[403841536,1769587840272,-3244.65,0.0001619,2]
[403841537,1769587840282,-588.97362942,0.00016207,2]
[403841538,1769587840292,-3244.65,0.00016215,2]
[403841539,1769587840304,-3244.65,0.00016241,2]
[403841540,1769587840315,-166.66,0.00016252,2]
[403841541,1769587840325,-3244.65,0.00016266,2]
[403841542,1769587840335,-3244.65,0.00016291,2]
[403841543,1769587840343,-3244.65,0.00016316,2]
[403841544,1769587840354,-3244.65,0.00016342,2]
[403841545,1769587840365,-3244.65,0.00016367,2]
[403841546,1769587840377,-500.0,0.00016373,2]
[403841547,1769587840386,-151.0,0.00016389,2]
[403841548,1769587840396,-3244.65,0.00016392,2]
[403841549,1769587840405,-3244.65,0.00016418,2]
[403841550,1769587840415,-500.0,0.00016438,2]
[403841551,1769587840424,-500.0,0.00016438,2]
[403841552,1769587840434,-3244.65,0.00016443,2]
[403841553,1769587840446,-166.66,0.00016466,2]
[403841554,1769587840457,-3244.65,0.00016468,2]
[403841555,1769587840467,-3244.65,0.00016494,2]
[403841556,1769587840476,-3244.65,0.00016519,2]
[403841557,1769587840487,-166.66,0.00016568,2]
[403841558,1769587840497,-993.61,0.00016576,2]
[403841559,1769587840508,-166.11,0.00016642,2]
[403841560,1769587840517,-500.0,0.00016671,2]
[403841561,1769587840526,-319.09148366,0.00016921,2]
[403841562,1769587840535,-11540.78,0.00016922,2]
[403841563,1769587840544,-999.99,0.00016922,2]
[403841564,1769587840554,-299.99,0.00016922,4]
[403841565,1769587840564,-50024.39,0.00016922,2]
[403841566,1769587840572,-9999.99,0.00016922,2]
[403841567,1769587840582,-9999.99,0.00016922,2]
[403841568,1769587840592,-3697.18,0.00016922,2]
[403841569,1769587840601,-150.99,0.00016922,2]
[403841571,1769587840611,-150.99,0.00016922,2]
[403841572,1769587840620,-6045.63,0.00016922,2]
[403841573,1769587840629,-514.39,0.00016922,2]
[403841574,1769587840640,-1196.84,0.00016922,2]
[403841575,1769587840649,-3825.89,0.00016922,2]
[403841576,1769587840658,-9999.99,0.00016922,2]
[403841577,1769587840667,-859.4,0.00016922,2]
[403841578,1769587840676,-9999.99,0.00016922,2]
[403841579,1769587840685,-9999.99,0.00016922,2]
[403841580,1769587840695,-166.66,0.00016976,2]
[403841581,1769587840704,-500.0,0.00016999,2]
[403841582,1769587840713,-505.26354102,0.00016999,2]
[403841583,1769587840722,-500.0,0.00016999,2]
[403841584,1769587840731,-250.0,0.00017,2]
[403841585,1769587840741,-1637.0,0.0001702,2]
[403841586,1769587840750,-563.52650006,0.00017049,2]
[403841587,1769587840759,-500.0,0.00017049,2]
[403841588,1769587840771,-1637.0,0.00017073,2]
[403841589,1769587840780,-798.05,0.00017094,2]
[403841590,1769587840790,-1637.0,0.00017168,2]
[403841591,1769587840799,-250.45243939,0.00017226,2]
[403841592,1769587840808,-3149.74005443,0.00017313,2]
[403841593,1769587840817,-3149.74005443,0.00017313,2]
[403841594,1769587840826,-3149.74005443,0.00017313,2]
[403841595,1769587840836,-3149.74005443,0.00017313,2]
[403841596,1769587840845,-3149.74005443,0.00017313,2]
[403841597,1769587840854,-500.0,0.00017313,2]
[403841598,1769587840864,-500.0,0.00017313,2]
[403841599,1769587840874,-500.0,0.00017313,2]
[403841600,1769587840883,-500.0,0.00017313,2]
[403841601,1769587840893,-500.0,0.00017313,2]
[403841602,1769587840902,-500.0,0.00017313,2]
[403841603,1769587840911,-500.0,0.00017313,2]
[403841604,1769587840921,-500.0,0.00017313,2]
[403841605,1769587840931,-500.0,0.00017313,2]
[403841606,1769587840940,-500.0,0.00017313,2]
[403841607,1769587840950,-500.0,0.00017313,2]
[403841608,1769587840959,-500.0,0.00017313,2]
[403841609,1769587840969,-500.0,0.00017313,2]
[403841610,1769587840978,-500.0,0.00017313,2]
[403841611,1769587840987,-500.0,0.00017313,2]
[403841612,1769587840997,-500.0,0.00017313,2]